[Event "2nd Father Cup Blitz 2023"]
[Site "Rasht"]
[Date "2023.12.07"]
[Round "6.4"]
[White "Mosadeghpour, Masoud"]
[Black "Toufighi, Homayoon"]
[Result "1-0"]
[ECO "C01"]
[WhiteElo "2473"]
[BlackElo "2368"]
[Annotator "RC"]
[PlyCount "61"]
[EventDate "2023.12.07"]
[EventType "swiss"]
[EventCountry "IRI"]
[SourceTitle "playchess.com"]
[Source "ChessBase"]
[SourceQuality "1"]
[TimeControl "300+2"]

1. Nf3 {[%emt 0:00:05]} e6 {[%emt 0:00:04]} 2. e4 {[%emt 0:00:02]} d5 {[%emt 0:00:02]} 3. exd5 {[%emt 0:00:02]} exd5 {[%emt 0:00:01]} 4. d4 {[%emt 0:00:01]} Bd6 {[%emt 0:00:08]} 5. Bd3 {[%emt 0:00:02]} Ne7 {[%emt 0:00:15]} 6. O-O {[%emt 0:00:03]} Nbc6 {[%emt 0:00:02]} 7. Re1 {[%emt 0:00:08]} Bg4 {[%emt 0:00:07]} 8. c3 {[%emt 0:00:03]} Qd7 {[%emt 0:00:08]} 9. h3 {[%emt 0:00:04]} Bh5 {[%emt 0:00:10]} 10. b4 {[%emt 0:00:04]} Bg6 {[%emt 0:00:11]} 11. Bf1 {[%emt 0:00:04]} a6 {[%emt 0:00:13]} 12. Nbd2 {[%emt 0:00:15]} O-O {[%emt 0:00:08]} 13. Ne5 {[%emt 0:00:07]} Bxe5 {[%emt 0:00:25]} 14. dxe5 {[%emt 0:00:01]} d4 {[%emt 0:00:33]} 15. Nb3 {[%emt 0:00:17]} Rfd8 {[%emt 0:00:27]} 16. e6 {[%emt 0:00:39]} Qd6 {[%emt 0:00:38]} 17. exf7+ {[%emt 0:00:07]} Bxf7 {[%emt 0:00:01]} 18. Nxd4 {[%emt 0:00:03]} Nxd4 {[%emt 0:00:02]} 19. cxd4 {[%emt 0:00:13]} Nc6 {[%emt 0:00:05]} 20. Bg5 {[%emt 0:00:11]} Rd7 {[%emt 0:00:02]} 21. Qg4 {[%emt 0:00:34]} Qxd4 {[%emt 0:00:16]} 22. Qg3 {[%emt 0:00:16]} Qxb4 {[%emt 0:00:18]} 23. Rad1 {[%emt 0:00:04]} Nd4 {[%emt 0:00:44]} 24. Qg4 {[%emt 0:00:29]} Qd6 {[%emt 0:00:23]} 25. Bf6 {[%emt 0:00:14]} Bh5 {[%emt 0:00:16]} 26. Bc4+ {[%emt 0:00:50]} Kh8 {[%emt 0:00:01]} 27. Qxh5 {[%emt 0:00:01]} gxf6 {[%emt 0:00:05]} 28. Re8+ {[%emt 0:00:15]} Rxe8 {[%emt 0:00:00]} 29. Qxe8+ {[%emt 0:00:02]} Kg7 {[%emt 0:00:01]} 30. Rd3 {[%emt 0:00:13]} f5 {[%emt 0:00:16]} 31. Kf1 {[%emt 0:00:35]} 1-0

[Event "2nd Father Cup Blitz 2023"]
[Site "Rasht"]
[Date "2023.12.07"]
[Round "7.1"]
[White "Maghsoodloo, Parham"]
[Black "Tahbaz, Arash"]
[Result "1-0"]
[ECO "D35"]
[WhiteElo "2742"]
[BlackElo "2423"]
[Annotator "TA"]
[PlyCount "113"]
[EventDate "2023.12.07"]
[EventType "swiss"]
[EventCountry "IRI"]
[SourceTitle "playchess.com"]
[Source "ChessBase"]
[SourceQuality "1"]
[TimeControl "300+2"]

{[%evp 15,113,12,10,8,25,25,50,41,37,37,53,16,50,47,38,36,34,39,63,25,16,0,81,93,125,100,113,100,194,181,215,96,129,145,310,318,300,172,350,60,67,58,73,76,72,66,14,22,14,20,110,102,98,-21,667,643,625,78,836,835,815,760,743,714,712,703,767,772,772,778,679,782,756,718,866,849,833,733,1139,1122,1354,1289,1089,984,12834,12834,12837,12838,12838,12839,12839,12839,12838,12839,12841,12841,12845,12841,12846,12841]} 1. c4 {[%emt 0:00:01]} e6 {[%emt 0:00:08]} 2. Nc3 {[%emt 0:00:02]} d5 {[%emt 0:00:01]} 3. d4 {[%emt 0:00:01]} Nf6 {[%emt 0:00:01]} 4. cxd5 {[%emt 0:00:01]} exd5 {[%emt 0:00:01]} 5. Bg5 {[%emt 0:00:02][%cal Bc1g5,Bg5h4,Bh4g3][%mdl 32]} c6 {[%emt 0:00:01]} 6. e3 {[%emt 0:00:01]} h6 {[%emt 0:00:03]} 7. Bh4 {[%emt 0:00:01]} Be7 {[%emt 0:00:01]} 8. Bd3 {[%emt 0:00:01]} O-O {[%emt 0:00:01]} 9. Nge2 {[%emt 0:00:02] D35: Queen's Gambit Declined: Exchange Variation.} Ne8 {[%emt 0:00:16]} 10. Bg3 {[%emt 0:00:10]} Nd6 {[%emt 0:00:02]} 11. Qc2 {[%emt 0:00:03] White is slightly better.} Re8 {[%emt 0:00:02]} 12. O-O {[%emt 0:00:29]} Bf8 {[%emt 0:00:01]} 13. Rfe1 $5 {[%emt 0:00:08][%mdl 4] Leaves trodden paths.} a5 {[%emt 0:00:01]} 14. Nf4 {[%emt 0:00:07]} Na6 {[%emt 0:00:01]} 15. a3 {[%emt 0:00:02] [#]} b5 $146 {[%emt 0:00:13]} ({Predecessor:} 15... Nc7 16. h3 Ne6 17. Nxe6 Bxe6 18. Na4 Nc4 19. e4 b5 20. Nc5 Bxc5 21. dxc5 a4 {½-½ Bok,B (2617)-Ter Sahakyan,S (2609) Speed Chess Q2 Sw blitz 2023 (7)}) 16. f3 {[%emt 0:00:14][%cal Bf2f3,Bf3e4,Be4e5][%mdl 32]} Nc4 {[%emt 0:00:04]} 17. Bf2 {[%emt 0:00:07]} (17. Bh7+ Kh8 $11) 17... Bd6 {[%emt 0:00:03]} 18. Nce2 {[%emt 0:00:16]} (18. Nh5 {feels hotter.} Nc7 19. e4 Qg5 20. Ng3) 18... Qc7 {[%emt 0:01:35]} (18... Nxe3 $11 19. Qxc6 Nc7) 19. Qc1 $16 {[%emt 0:00:09]} a4 {[%emt 0:00:07]} 20. e4 $1 {[%emt 0:00:13]} dxe4 {[%emt 0:00:14]} 21. fxe4 {[%emt 0:00:01]} Na5 {[%emt 0:00:20]} (21... Bxf4 $16 22. Nxf4 Na5) 22. e5 $18 {[%emt 0:00:02]} Bf8 {[%emt 0:00:03]} 23. Qc2 {[%emt 0:00:09]} (23. Ng3 $18 {and White stays clearly on top.}) 23... Nb3 {[%emt 0:00:14]} 24. Rad1 {[%emt 0:00:01]} Qb7 $2 {[%emt 0:00:53]} (24... Bd7 $16 25. h3 (25. Bh7+ Kh8 $16) 25... Rad8) 25. Be4 {[%emt 0:00:14]} Bd7 {[%emt 0:00:04]} 26. Ng3 {[%emt 0:00:03]} (26. d5 $142 Bc5 27. e6 Bxf2+ 28. Kxf2 Qa7+ 29. Kg3 (29. Kf1 fxe6 30. dxc6 Bc8 $18)) 26... Nc7 {[%emt 0:00:15]} (26... Qc8 {might work better.} 27. Ngh5 Kh8) 27. Nf5 $2 {[%emt 0:00:22]} ({Only move:} 27. d5 $18 Bg4 28. e6 (28. Qxc6 Qxc6 29. dxc6 Bxd1 $17) 28... Nxd5 29. Rxd5 Bxe6 30. Rdd1) 27... Nd5 $14 {[%emt 0:00:03]} 28. Nh5 {[%emt 0:00:09][%cal Of5h6] White threatens Nxh6+! and mate.} Bxf5 {[%emt 0:00:11]} 29. Bxf5 {[%emt 0:00:01]} g6 {[%emt 0:00:01] [#]} 30. Bxg6 {[%emt 0:00:03][%mdl 64] Demolition} fxg6 {[%emt 0:00:01]} 31. Qxg6+ {[%emt 0:00:01]} Kh8 {[%emt 0:00:02]} 32. Bh4 {[%emt 0:00:04][%mdl 1024] Rf1 would be deadly. White has compensation.} Qd7 {[%emt 0:00:32]} (32... Rec8 $1 $11 {keeps the balance.}) 33. Rf1 $1 $16 {[%emt 0:00:07] Black must now prevent Rf7. White is more active.} (33. Bf6+ $6 Nxf6 34. Nxf6 Qg7 35. Qxg7+ (35. Qxe8 $2 Rxe8 36. Nxe8 Qg6 $19) 35... Kxg7 36. Nxe8+ Rxe8 $11) 33... Re6 {[%emt 0:00:02] [#]} (33... Qh7 $2 34. Qxc6 Qg8 35. e6 $18 (35. Qxb5 Be7 $16)) 34. Qf5 {[%emt 0:00:23]} (34. Bf6+ $6 Nxf6 35. Nf4 (35. Nxf6 Qg7 $11) 35... Nxd4 36. Nxe6 (36. exf6 Rd6 $15) 36... Qxe6 $11) ({White should try} 34. Qg4 $1 $16) 34... Be7 {[%emt 0:00:00][%mdl 8192] Dodges Rf6. Black is now going downhill.} (34... Nxd4 $11 35. Rxd4 Bc5) 35. Qf7 $18 {[%emt 0:02:22][%csl Gh5][%cal Rf7g7]} Rg8 {[%emt 0:00:11] [#] Prevents Qg7+} 36. Rf6 $2 $40 {[%emt 0:00:00][%mdl 128] Black is in trouble.} Nxf6 $4 {[%emt 0:00:10][%mdl 8192]} (36... Bxf6 $2 37. Qxd7 Bxh4 38. Qxe6 $18) (36... Nc5 $16 37. dxc5 Bxc5+ 38. Kh1 Qxf7 39. Rxf7 Rf8 40. Rxf8+ Bxf8) 37. Bxf6+ {[%emt 0:00:00] White is clearly winning.} (37. Nxf6 Rg7 38. Qh5 Bxf6 39. Qxh6+ Kg8 40. Bxf6 Ree7 $17) 37... Rxf6 {[%emt 0:00:00]} 38. Nxf6 {[%emt 0:00:00][%csl Gf6][%cal Rf7g8]} Rg7 {[%emt 0:00:16]} 39. Qxg7+ {[%emt 0:00:00]} Kxg7 {[%emt 0:00:01]} 40. Nxd7 {[%emt 0:00:00][%mdl 4096] Endgame KRN-KBN} Kf7 {[%emt 0:00:02]} 41. Nb8 {[%emt 0:00:00]} Na5 {[%emt 0:00:04]} 42. Rc1 {[%emt 0:00:00]} Bg5 {[%emt 0:00:01]} 43. Rc3 {[%emt 0:00:00]} Bd2 {[%emt 0:00:02]} 44. Rf3+ {[%emt 0:00:00]} Ke7 {[%emt 0:00:03]} 45. Kf1 {[%emt 0:00:00]} Bc1 {[%emt 0:00:02]} 46. Rf2 {[%emt 0:00:00]} Be3 {[%emt 0:00:01]} 47. Rf6 {[%emt 0:00:00]} Bxd4 {[%emt 0:00:02]} 48. Nxc6+ {[%emt 0:00:00]} Nxc6 {[%emt 0:00:01]} 49. Rxc6 {[%emt 0:00:00]} Bxb2 {[%emt 0:00:04] KR-KB} 50. Rb6 {[%emt 0:00:00]} Bxa3 {[%emt 0:00:02]} 51. Rxb5 {[%emt 0:00:00]} ({Inferior is} 51. Rxh6 Bb2 $11) 51... Bc1 {[%emt 0:00:01]} 52. Ke2 {[%emt 0:00:00]} a3 {[%emt 0:00:02]} 53. Ra5 {[%emt 0:00:00]} Ke6 {[%emt 0:00:01]} 54. Kf3 {[%emt 0:00:00]} Kf5 {[%emt 0:00:04]} 55. g4+ {[%emt 0:00:00]} Kg5 {[%emt 0:00:01]} 56. h3 {[%emt 0:00:00]} Bb2 {[%emt 0:00:01]} 57. Ke4 {[%emt 0:00:00] Weighted Error Value: White=0.50/Black=0.50} 1-0

[Event "2nd Father Cup Blitz 2023"]
[Site "Rasht"]
[Date "2023.12.07"]
[Round "7.2"]
[White "Daghli, Arash"]
[Black "Mahdavi, Reza"]
[Result "1-0"]
[ECO "E32"]
[WhiteElo "2410"]
[BlackElo "2312"]
[Annotator "RC"]
[PlyCount "77"]
[EventDate "2023.12.07"]
[EventType "swiss"]
[EventCountry "IRI"]
[SourceTitle "playchess.com"]
[Source "ChessBase"]
[SourceQuality "1"]
[TimeControl "300+2"]

1. c4 {[%emt 0:00:01]} e6 {[%emt 0:00:01]} 2. Nc3 {[%emt 0:00:07]} Bb4 {[%emt 0:00:01]} 3. Qc2 {[%emt 0:00:10]} Nf6 {[%emt 0:00:06]} 4. Nf3 {[%emt 0:00:00]} O-O {[%emt 0:00:08]} 5. a3 {[%emt 0:00:01]} Bxc3 {[%emt 0:00:01]} 6. Qxc3 {[%emt 0:00:01]} d6 {[%emt 0:00:02]} 7. d4 {[%emt 0:00:11]} Re8 {[%emt 0:00:02]} 8. e3 {[%emt 0:00:03]} b6 {[%emt 0:00:09]} 9. b4 {[%emt 0:00:03]} Bb7 {[%emt 0:00:02]} 10. Bb2 {[%emt 0:00:01]} Nbd7 {[%emt 0:00:02]} 11. Qc2 {[%emt 0:00:17]} Qe7 {[%emt 0:00:04]} 12. Be2 {[%emt 0:00:02]} c5 {[%emt 0:00:08]} 13. O-O {[%emt 0:00:07]} Rac8 {[%emt 0:00:10]} 14. dxc5 {[%emt 0:00:08]} bxc5 {[%emt 0:00:02]} 15. Rfd1 {[%emt 0:00:10]} Red8 {[%emt 0:00:26]} 16. b5 {[%emt 0:00:22]} Nb6 {[%emt 0:00:20]} 17. a4 {[%emt 0:00:11]} Bxf3 {[%emt 0:00:10]} 18. Bxf3 {[%emt 0:00:06]} d5 {[%emt 0:00:01]} 19. Be2 {[%emt 0:00:34]} Ne8 {[%emt 0:01:06]} 20. a5 {[%emt 0:01:00]} Nxc4 {[%emt 0:00:01]} 21. Bxc4 {[%emt 0:00:01]} dxc4 {[%emt 0:00:01]} 22. Rxd8 {[%emt 0:00:17]} Qxd8 {[%emt 0:00:12]} 23. Qxc4 {[%emt 0:00:10]} Nd6 {[%emt 0:00:38]} 24. Qg4 {[%emt 0:00:08]} Ne8 {[%emt 0:00:25]} 25. Qe4 {[%emt 0:00:41]} Qd2 {[%emt 0:00:11]} 26. Be5 {[%emt 0:00:23]} c4 {[%emt 0:00:21]} 27. h3 {[%emt 0:00:22]} c3 {[%emt 0:00:05]} 28. Qb7 {[%emt 0:00:02]} Rd8 {[%emt 0:00:13]} 29. Qc6 {[%emt 0:00:01]} c2 {[%emt 0:00:06]} 30. b6 {[%emt 0:00:04]} axb6 {[%emt 0:00:10]} 31. axb6 {[%emt 0:00:00]} Qb4 {[%emt 0:00:14]} 32. Kh2 {[%emt 0:00:06]} Nf6 {[%emt 0:00:14]} 33. Bc7 {[%emt 0:00:08]} Re8 {[%emt 0:00:11]} 34. Ra8 {[%emt 0:00:03]} Rxa8 {[%emt 0:00:03]} 35. Qxa8+ {[%emt 0:00:00]} Qf8 {[%emt 0:00:01]} 36. Qc6 {[%emt 0:00:03]} Nd5 {[%emt 0:00:02]} 37. Qxc2 {[%emt 0:00:06]} Qb4 {[%emt 0:00:01]} 38. Qc6 {[%emt 0:00:01]} h5 {[%emt 0:00:03]} 39. b7 {[%emt 0:00:01]} 1-0

[Event "2nd Father Cup Blitz 2023"]
[Site "Rasht"]
[Date "2023.12.07"]
[Round "7.3"]
[White "Mousavi, Seyed Khalil"]
[Black "Mosadeghpour, Masoud"]
[Result "0-1"]
[ECO "D35"]
[WhiteElo "2501"]
[BlackElo "2473"]
[Annotator "RC"]
[PlyCount "102"]
[EventDate "2023.12.07"]
[EventType "swiss"]
[EventCountry "IRI"]
[SourceTitle "playchess.com"]
[Source "ChessBase"]
[SourceQuality "1"]
[TimeControl "300+2"]

1. d4 {[%emt 0:00:03]} Nf6 {[%emt 0:00:02]} 2. c4 {[%emt 0:00:01]} e6 {[%emt 0:00:04]} 3. Nf3 {[%emt 0:00:01]} d5 {[%emt 0:00:01]} 4. Nc3 {[%emt 0:00:02]} Nbd7 {[%emt 0:00:03]} 5. cxd5 {[%emt 0:00:03]} exd5 {[%emt 0:00:02]} 6. Bg5 {[%emt 0:00:02]} c6 {[%emt 0:00:05]} 7. Qc2 {[%emt 0:00:11]} Bd6 {[%emt 0:00:13]} 8. e3 {[%emt 0:00:03]} Nf8 {[%emt 0:00:16]} 9. Bd3 {[%emt 0:00:04]} Ng6 {[%emt 0:00:04]} 10. h4 {[%emt 0:01:03]} h6 {[%emt 0:00:20]} 11. Bxg6 {[%emt 0:00:54]} hxg5 {[%emt 0:00:01]} 12. Nxg5 {[%emt 0:00:01]} fxg6 {[%emt 0:00:02]} 13. Qxg6+ {[%emt 0:00:02]} Kd7 {[%emt 0:00:01]} 14. Qxg7+ {[%emt 0:00:14]} Be7 {[%emt 0:00:02]} 15. Nf7 {[%emt 0:00:30]} Rg8 {[%emt 0:01:06]} 16. Qh6 {[%emt 0:00:03]} Qf8 {[%emt 0:00:13]} 17. Ne5+ {[%emt 0:00:02]} Ke8 {[%emt 0:00:07]} 18. Qf4 {[%emt 0:00:09]} Ng4 {[%emt 0:00:08]} 19. Qxf8+ {[%emt 0:00:13]} Bxf8 {[%emt 0:00:20]} 20. Nxg4 {[%emt 0:00:10]} Rxg4 {[%emt 0:00:01]} 21. g3 {[%emt 0:00:15]} Kf7 {[%emt 0:00:10]} 22. Ne2 {[%emt 0:00:22]} Bb4+ {[%emt 0:00:01]} 23. Kf1 {[%emt 0:00:04]} Bd7 {[%emt 0:00:17]} 24. a3 {[%emt 0:00:04]} Ba5 {[%emt 0:00:05]} 25. f3 {[%emt 0:00:04]} Rgg8 {[%emt 0:00:08]} 26. Kf2 {[%emt 0:00:01]} Rae8 {[%emt 0:00:02]} 27. Rad1 {[%emt 0:00:11]} Re7 {[%emt 0:00:14]} 28. Nf4 {[%emt 0:00:11]} Rge8 {[%emt 0:00:04]} 29. Ng2 {[%emt 0:00:04]} Kg8 {[%emt 0:00:12]} 30. h5 {[%emt 0:00:10]} Rf8 {[%emt 0:00:04]} 31. Nf4 {[%emt 0:00:08]} Rfe8 {[%emt 0:00:05]} 32. Ng2 {[%emt 0:00:13]} Bc7 {[%emt 0:00:01]} 33. g4 {[%emt 0:00:16]} Rf7 {[%emt 0:00:03]} 34. Ke2 {[%emt 0:00:04]} Ref8 {[%emt 0:00:11]} 35. Nh4 {[%emt 0:00:01]} Bd8 {[%emt 0:00:06]} 36. Ng6 {[%emt 0:00:03]} Rxf3 {[%emt 0:00:03]} 37. Nxf8 {[%emt 0:00:04]} Rxf8 {[%emt 0:00:01]} 38. Rhg1 {[%emt 0:00:05]} Bg5 {[%emt 0:00:01]} 39. Rdf1 {[%emt 0:00:04]} Re8 {[%emt 0:00:02]} 40. Rf3 {[%emt 0:00:04]} Re4 {[%emt 0:00:02]} 41. Kd3 {[%emt 0:00:01]} c5 {[%emt 0:00:08]} 42. dxc5 {[%emt 0:00:02]} Bb5+ {[%emt 0:00:00]} 43. Kc2 {[%emt 0:00:03]} Bxe3 {[%emt 0:00:08]} 44. Re1 {[%emt 0:00:02]} d4 {[%emt 0:00:01]} 45. Kb1 {[%emt 0:00:02]} Rxg4 {[%emt 0:00:03]} 46. Rf6 {[%emt 0:00:05]} Rg5 {[%emt 0:00:12]} 47. h6 {[%emt 0:00:00]} Bd3+ {[%emt 0:00:12]} 48. Ka2 {[%emt 0:00:00]} Rxc5 {[%emt 0:00:06]} 49. Rh1 {[%emt 0:00:01]} Be4 {[%emt 0:00:20]} 50. Rh4 {[%emt 0:00:03]} Bd5+ {[%emt 0:00:05]} 51. Kb1 {[%emt 0:00:03]} Rc1# {[%emt 0:00:02]} 0-1

[Event "2nd Father Cup Blitz 2023"]
[Site "Rasht"]
[Date "2023.12.07"]
[Round "7.4"]
[White "Pourramezanali, Amirreza"]
[Black "Ahmadi, Erfan"]
[Result "1-0"]
[ECO "B15"]
[WhiteElo "2500"]
[BlackElo "2031"]
[Annotator "RC"]
[PlyCount "97"]
[EventDate "2023.12.07"]
[EventType "swiss"]
[EventCountry "IRI"]
[SourceTitle "playchess.com"]
[Source "ChessBase"]
[SourceQuality "1"]
[TimeControl "300+2"]

1. e4 {[%emt 0:00:01]} c6 {[%emt 0:00:01]} 2. d4 {[%emt 0:00:04]} d5 {[%emt 0:00:01]} 3. Nc3 {[%emt 0:00:07]} dxe4 {[%emt 0:00:02]} 4. Nxe4 {[%emt 0:00:02]} Nf6 {[%emt 0:00:01]} 5. Nxf6+ {[%emt 0:00:02]} exf6 {[%emt 0:00:01]} 6. Bc4 {[%emt 0:00:17]} Bd6 {[%emt 0:00:07]} 7. Qe2+ {[%emt 0:00:01]} Qe7 {[%emt 0:00:02]} 8. Qxe7+ {[%emt 0:00:01]} Bxe7 {[%emt 0:00:01]} 9. Nf3 {[%emt 0:00:02]} Bd6 {[%emt 0:00:02]} 10. c3 {[%emt 0:00:01]} O-O {[%emt 0:00:02]} 11. O-O {[%emt 0:00:03]} Bg4 {[%emt 0:00:03]} 12. Nd2 {[%emt 0:00:02]} Nd7 {[%emt 0:00:01]} 13. h3 {[%emt 0:00:16]} Bf5 {[%emt 0:00:05]} 14. Bb3 {[%emt 0:00:26]} Nb6 {[%emt 0:00:07]} 15. Nc4 {[%emt 0:00:08]} Nxc4 {[%emt 0:00:12]} 16. Bxc4 {[%emt 0:00:01]} Rfe8 {[%emt 0:00:02]} 17. Be3 {[%emt 0:00:02]} Rad8 {[%emt 0:00:04]} 18. Rad1 {[%emt 0:00:02]} Be4 {[%emt 0:00:13]} 19. Rfe1 {[%emt 0:00:12]} g6 {[%emt 0:00:04]} 20. Bb3 {[%emt 0:00:04]} Kg7 {[%emt 0:00:03]} 21. a3 {[%emt 0:00:03]} f5 {[%emt 0:00:08]} 22. f3 {[%emt 0:00:10]} Bd5 {[%emt 0:00:04]} 23. c4 {[%emt 0:00:03]} f4 {[%emt 0:00:37]} 24. Bf2 {[%emt 0:00:02]} Be6 {[%emt 0:00:15]} 25. d5 {[%emt 0:00:01]} cxd5 {[%emt 0:00:09]} 26. cxd5 {[%emt 0:00:01]} Bf5 {[%emt 0:00:01]} 27. Bxa7 {[%emt 0:00:07]} Be5 {[%emt 0:00:08]} 28. Bb6 {[%emt 0:00:51]} Ra8 {[%emt 0:00:26]} 29. Rxe5 {[%emt 0:00:37]} Rxe5 {[%emt 0:00:02]} 30. Bd4 {[%emt 0:00:01]} f6 {[%emt 0:00:00]} 31. Bxe5 {[%emt 0:00:01]} fxe5 {[%emt 0:00:01]} 32. Rc1 {[%emt 0:00:05]} Rc8 {[%emt 0:00:16]} 33. Rxc8 {[%emt 0:00:10]} Bxc8 {[%emt 0:00:02]} 34. Bc4 {[%emt 0:00:26]} Kf6 {[%emt 0:00:05]} 35. d6 {[%emt 0:00:09]} e4 {[%emt 0:00:09]} 36. fxe4 {[%emt 0:00:14]} Ke5 {[%emt 0:00:00]} 37. Bd5 {[%emt 0:00:03]} Kxd6 {[%emt 0:00:02]} 38. Kf2 {[%emt 0:00:07]} Ke5 {[%emt 0:00:03]} 39. a4 {[%emt 0:00:27]} Kd4 {[%emt 0:00:13]} 40. a5 {[%emt 0:00:02]} Kc5 {[%emt 0:00:11]} 41. Bg8 {[%emt 0:00:30]} h6 {[%emt 0:00:09]} 42. Bh7 {[%emt 0:00:01]} Kb4 {[%emt 0:00:53]} 43. Bxg6 {[%emt 0:00:01]} Bd7 {[%emt 0:00:01]} 44. Kf3 {[%emt 0:00:04]} Kxa5 {[%emt 0:00:02]} 45. Kxf4 {[%emt 0:00:01]} Kb4 {[%emt 0:00:02]} 46. Bf7 {[%emt 0:00:01]} Kc5 {[%emt 0:00:05]} 47. e5 {[%emt 0:00:02]} Bc6 {[%emt 0:00:03]} 48. g4 {[%emt 0:00:02]} b5 {[%emt 0:00:03]} 49. h4 {[%emt 0:00:01]} 1-0

[Event "2nd Father Cup Blitz 2023"]
[Site "Rasht"]
[Date "2023.12.07"]
[Round "8.1"]
[White "Maghsoodloo, Parham"]
[Black "Pourramezanali, Amirreza"]
[Result "1-0"]
[ECO "D35"]
[WhiteElo "2742"]
[BlackElo "2500"]
[Annotator "TA"]
[PlyCount "103"]
[EventDate "2023.12.07"]
[EventType "swiss"]
[EventCountry "IRI"]
[SourceTitle "playchess.com"]
[Source "ChessBase"]
[SourceQuality "1"]
[TimeControl "300+2"]

{[%evp 15,103,7,12,10,15,15,18,12,6,14,37,37,25,26,50,0,0,0,53,15,12,32,6,0,4,-12,0,0,0,-87,-83,-75,0,-152,0,0,0,-21,0,-37,-41,-6,-13,-58,13,19,18,0,56,4,4,5,4,0,0,-12,12,12,715,708,711,713,713,705,696,690,686,671,813,766,780,731,6070,5799,6070,5062,2135,1408,7714,6378,5497,3967,29975,1472,1449,0,29974,29975,29974,12652]} 1. c4 {[%emt 0:00:01]} e6 {[%emt 0:00:01]} 2. Nc3 {[%emt 0:00:01]} d5 {[%emt 0:00:01]} 3. d4 {[%emt 0:00:01]} Nf6 {[%emt 0:00:01]} 4. cxd5 {[%emt 0:00:01]} exd5 {[%emt 0:00:01]} 5. Bg5 {[%emt 0:00:01]} c6 {[%emt 0:00:01]} 6. e3 {[%emt 0:00:01]} h6 {[%emt 0:00:01]} 7. Bh4 {[%emt 0:00:01]} Be7 {[%emt 0:00:01]} 8. Bd3 {[%emt 0:00:00]} O-O {[%emt 0:00:02]} 9. Nge2 {[%emt 0:00:01] D35: Queen's Gambit Declined: Exchange Variation.} Re8 {[%emt 0:00:02]} 10. O-O {[%emt 0:00:02]} a5 {[%emt 0:00:01]} 11. f3 {[%emt 0:00:01] The position is equal.} b5 {[%emt 0:00:02]} 12. Bf2 {[%emt 0:00:31]} Ba6 {[%emt 0:00:07]} 13. Rc1 {[%emt 0:00:04]} Nbd7 {[%emt 0:00:05]} 14. Ng3 {[%emt 0:00:06]} Bf8 {[%emt 0:00:46] [#]} 15. Nce2 $146 {[%emt 0:00:14]} ({Better is} 15. e4 $14) ({Predecessor:} 15. e4 dxe4 16. fxe4 b4 17. Bxa6 Rxa6 18. Na4 c5 19. e5 Nh7 20. Nxc5 Nxc5 21. dxc5 {½-½ Quesada Perez,L (2544)-Warmerdam,M (2633) Casablanca Mohammed op 4th 2023 (5)}) 15... Qb6 $11 {[%emt 0:00:20]} 16. Nf4 {[%emt 0:00:08]} b4 {[%emt 0:00:21]} (16... c5 $1 $11) 17. Re1 {[%emt 0:00:10]} Bxd3 {[%emt 0:00:32]} 18. Nxd3 {[%emt 0:00:02]} c5 {[%emt 0:00:08]} 19. dxc5 {[%emt 0:00:02]} Nxc5 {[%emt 0:00:13]} 20. e4 {[%emt 0:00:01][%cal Rd3c5]} Rac8 {[%emt 0:00:33][%cal Rd5e4]} 21. e5 {[%emt 0:00:09] Black must now prevent Rxc5.} Nfd7 {[%emt 0:00:02][%cal Oc5d3]} 22. Nf4 {[%emt 0:00:16]} (22. Rc2 $11 {keeps the balance.}) 22... Nxe5 $17 {[%emt 0:01:04]} 23. Qxd5 {[%emt 0:00:01]} Qd6 {[%emt 0:00:04]} (23... Qb8 $17 {...Rcd8 would be deadly.} 24. Bxc5 Rcd8) 24. Rcd1 $2 {[%emt 0:01:05] [#]} ({White should play} 24. Qxd6 $1 $11 Bxd6 25. Nf5) 24... Qxd5 $2 {[%emt 0:00:04]} (24... Qb8 $1 $17 {Hoping for ...Rcd8.} 25. Qd4 Na4) 25. Rxd5 $11 {[%emt 0:00:01]} f6 {[%emt 0:00:23]} 26. h4 {[%emt 0:00:09]} Red8 {[%emt 0:00:05]} 27. Red1 {[%emt 0:00:01]} Rxd5 {[%emt 0:00:11]} 28. Rxd5 {[%emt 0:00:01]} a4 {[%emt 0:00:01]} 29. Nf5 {[%emt 0:00:08][%cal Of5g7]} a3 {[%emt 0:00:03]} (29... g5 $1 $15 30. Nh5 Kf7) 30. bxa3 {[%emt 0:00:02]} bxa3 {[%emt 0:00:01]} 31. h5 {[%emt 0:00:01]} (31. Nxg7 $5 {[%cal Rg7f5]} Ncd7 32. Nf5 $11) 31... Na4 {[%emt 0:00:04]} (31... Nb7 $11 32. Ne3 Kf7) 32. Bd4 {[%emt 0:00:10]} (32. Ng6 $14 Nxg6 33. hxg6) 32... Nc3 {[%emt 0:00:04]} 33. Bxc3 {[%emt 0:00:04]} Rxc3 {[%emt 0:00:01]} 34. Rd8 {[%emt 0:00:40] Threatens to win with Ne6.} Kf7 {[%emt 0:00:05] Against Ne6. And now ...Rc4 would win.} 35. Rb8 {[%emt 0:00:03]} Rc1+ {[%emt 0:00:17]} 36. Kh2 {[%emt 0:00:02] next Rb7+ is good for White.} Rc7 {[%emt 0:00:13][%mdl 8192] [#] Against Rb7. White now steadily converts the win.} (36... Rc2 $11) 37. Rxf8+ $1 $18 {[%emt 0:00:02][%mdl 576] Decoy} Kxf8 {[%emt 0:00:02][%mdl 4096] Endgame KRN-KNN} 38. Ne6+ {[%emt 0:00:01]} Kf7 {[%emt 0:00:01]} 39. Nxc7 {[%emt 0:00:01]} Nd3 {[%emt 0:00:01]} 40. Nb5 {[%emt 0:00:03]} Nb4 {[%emt 0:00:01]} 41. Nc3 {[%emt 0:00:07]} g6 {[%emt 0:00:07]} 42. Nd6+ {[%emt 0:00:06]} Kg7 {[%emt 0:00:02]} 43. f4 {[%emt 0:00:21][%cal Bf3f4,Bf4f5][%mdl 32] aiming for hxg6.} gxh5 {[%emt 0:00:02]} 44. f5 {[%emt 0:00:01]} Kf8 {[%emt 0:00:03]} 45. Kh3 {[%emt 0:00:02]} Ke7 {[%emt 0:00:01]} 46. Nc4 {[%emt 0:00:01]} Nc2 {[%emt 0:00:04]} 47. Kh4 {[%emt 0:00:03] White wants to mate with Nd5+.} Nd4 {[%emt 0:00:03]} 48. Nd5+ {[%emt 0:00:02]} Kf7 {[%emt 0:00:02]} 49. Nde3 {[%emt 0:00:01]} (49. Nd6+ $142 Kg7 50. Kxh5 Ne2 51. Ne8+ Kf7 52. Nexf6 Kg7 53. Ne8+ Kf8 54. Nd6 Ng3+ 55. Kxh6) 49... Nb5 {[%emt 0:00:02]} 50. Nd5 {[%emt 0:00:06]} (50. Kxh5 $18 Kg7 51. Nd5) 50... Nd4 {[%emt 0:00:02]} 51. Nd6+ {[%emt 0:00:01]} Kg7 {[%emt 0:00:05]} 52. Kxh5 {[%emt 0:00:02] Weighted Error Value: White=0.25 (precise) /Black=0.26 (precise)} 1-0